bitfinex/quotes_BTCUSD_20230118
["timestamp","ask_amount","ask_price","bid_price","bid_amount"]
[1674064814127,0.75580719,20874.0,20871.0,0.00706151]
[1674064814374,0.75580719,20874.0,20871.0,0.002]
[1674064814375,0.76479819,20874.0,20871.0,0.002]
[1674064814623,1.24386219,20874.0,20871.0,0.002]
[1674064814865,0.313927,20873.0,20871.0,0.002]
[1674064815117,1.294454,20872.0,20871.0,0.002]
[1674064815612,1.522554,20872.0,20870.0,0.01345983]
[1674064815867,0.409209,20871.0,20870.0,0.01345983]
[1674064816120,1.86813208,20871.0,20870.0,0.01345983]
[1674064817128,1.73113208,20871.0,20870.0,0.01445983]
[1674064817373,1.64023208,20871.0,20870.0,0.01345983]
[1674064817621,0.43665708,20871.0,20870.0,0.01345983]
[1674064818138,1.56379879,20871.0,20870.0,0.01345983]
[1674064818392,1.95058008,20871.0,20870.0,0.01345983]
[1674064818912,1.86458008,20871.0,20870.0,0.01345983]
[1674064819845,1.678023,20871.0,20870.0,0.01345983]
[1674064820022,2.02351657,20871.0,20870.0,0.01345983]
[1674064820264,2.02551657,20871.0,20870.0,0.01345983]
[1674064820530,1.93751657,20871.0,20870.0,0.01345983]
[1674064820774,2.39009263,20871.0,20870.0,0.01345983]
[1674064821286,2.26135345,20871.0,20870.0,0.01345983]
[1674064821812,2.26235345,20871.0,20870.0,0.01345983]
[1674064822558,1.87805345,20871.0,20870.0,0.01345983]
[1674064822824,1.96705345,20871.0,20870.0,0.01345983]
[1674064823102,1.592023,20871.0,20870.0,0.01345983]
[1674064823345,2.33440561,20871.0,20870.0,0.01345983]
[1674064823616,2.2000077,20871.0,20870.0,0.01345983]
[1674064823846,2.20736703,20871.0,20870.0,0.01345983]
[1674064824089,2.50476703,20871.0,20870.0,0.01345983]
[1674064824370,2.17474033,20871.0,20870.0,0.01345983]
[1674064824592,2.26374033,20871.0,20870.0,0.01345983]
[1674064825338,2.17474033,20871.0,20870.0,0.01345983]
[1674064825805,1.889423,20871.0,20870.0,0.01345983]
[1674064826051,1.889423,20871.0,20865.0,0.0135177]
[1674064826052,0.15,20870.0,20865.0,0.0135177]
[1674064826313,0.0779,20867.0,20865.0,0.0135177]
[1674064826563,1.437744,20866.0,20865.0,0.0135177]
[1674064826815,2.23858571,20866.0,20865.0,0.0135177]
[1674064827074,2.04426474,20866.0,20865.0,0.0135177]
[1674064827849,2.12216474,20866.0,20865.0,0.0135177]
[1674064828103,2.12216474,20866.0,20861.0,0.01405119]
[1674064828104,0.15,20865.0,20861.0,0.01405119]
[1674064828356,1.46572497,20864.0,20861.0,0.01405119]
[1674064828614,0.479298,20864.0,20861.0,0.01405119]
[1674064828864,0.479298,20864.0,20863.0,0.00666622]
[1674064829119,0.479298,20864.0,20861.0,0.01405119]
[1674064829634,0.557391,20865.0,20861.0,0.01405119]
[1674064829891,0.479317,20863.0,20861.0,0.01405119]
[1674064831132,0.30839664,20864.0,20861.0,0.01405119]
[1674064831623,0.29539664,20864.0,20861.0,0.01405119]
[1674064831880,0.29539664,20864.0,20861.0,0.01605119]
[1674064831881,0.77469364,20864.0,20861.0,0.01605119]
[1674064832134,0.77469364,20864.0,20861.0,0.01405119]
[1674064832382,0.30839664,20864.0,20861.0,0.01505119]
[1674064832650,0.30839664,20864.0,20860.0,0.77558274]
[1674064832651,0.78769064,20864.0,20860.0,0.77558274]
[1674064832909,0.492294,20864.0,20860.0,0.76771163]
[1674064833152,0.013,20864.0,20861.0,0.326644]
[1674064833393,0.013,20864.0,20860.0,0.8144882]
[1674064833645,0.958563,20865.0,20860.0,0.8144882]
[1674064833904,1.52288336,20865.0,20860.0,0.28834163]
[1674064834169,0.19432097,20864.0,20860.0,0.1851182]
[1674064834435,0.19432097,20864.0,20859.0,0.3688001]
[1674064834436,0.958644,20863.0,20859.0,0.3688001]
[1674064834690,1.15296497,20863.0,20860.0,0.0085]
[1674064834998,0.479322,20863.0,20860.0,0.002]
[1674064835212,0.479322,20863.0,20859.0,0.487909]
[1674064835462,0.20332097,20863.0,20859.0,0.639889]
[1674064835715,0.19432097,20863.0,20860.0,0.615871]
[1674064835963,0.008,20863.0,20861.0,0.019292]
[1674064836232,0.84928939,20865.0,20862.0,0.314849]
[1674064836488,0.84928939,20865.0,20863.0,0.3085]
[1674064836489,0.36999939,20865.0,20863.0,0.3085]
[1674064837538,0.36999939,20865.0,20863.0,0.0085]
[1674064837791,0.810718,20867.0,20863.0,0.0085]
[1674064838052,0.810718,20867.0,20863.0,0.11172343]
[1674064838333,0.008,20865.0,20863.0,0.41372343]
[1674064838576,1.289943,20867.0,20863.0,0.3085]
[1674064839057,0.95852,20866.0,20863.0,0.41172343]
[1674064839059,0.33147,20867.0,20863.0,0.41172343]
[1674064839320,0.34047,20867.0,20863.0,0.89304043]
[1674064839844,0.34047,20867.0,20863.0,0.789817]
[1674064840133,0.34047,20867.0,20863.0,0.89304043]
[1674064840869,0.34047,20867.0,20863.0,1.37235743]
[1674064841132,0.34047,20867.0,20863.0,0.3105]
[1674064841431,1.01401597,20867.0,20863.0,0.3105]
[1674064841917,0.53479097,20867.0,20863.0,0.489807]
[1674064842189,1.01401797,20867.0,20863.0,0.489807]
[1674064842730,0.819697,20867.0,20863.0,0.489807]
[1674064842987,0.819697,20867.0,20863.0,0.0105]
[1674064843239,0.819697,20867.0,20863.0,0.11372343]
[1674064843535,0.819697,20867.0,20863.0,0.41372343]
[1674064843803,0.819697,20867.0,20863.0,0.3105]
[1674064843804,1.298922,20867.0,20863.0,0.3105]
[1674064844062,1.49324297,20867.0,20863.0,0.3105]
[1674064844577,1.69829967,20867.0,20863.0,0.0105]
[1674064844852,0.324556,20866.0,20863.0,0.0105]
[1674064845108,1.69831967,20867.0,20863.0,0.0105]
[1674064845502,0.479248,20866.0,20863.0,0.0105]
[1674064845755,0.469092,20865.0,20860.0,1.4907641]
[1674064846001,0.19432097,20864.0,20863.0,0.002]
[1674064846266,0.479276,20865.0,20863.0,0.002]
[1674064846516,0.958547,20865.0,20863.0,0.002]
[1674064846787,0.333273,20864.0,20863.0,0.002]
[1674064847032,0.479273,20865.0,20863.0,0.002]
[1674064847282,0.479273,20865.0,20862.0,0.3]
[1674064847529,0.958544,20865.0,20863.0,0.002]
[1674064847777,0.958544,20865.0,20860.0,0.89383087]
[1674064848023,1.16586497,20865.0,20860.0,0.89383087]
[1674064848277,1.15287197,20865.0,20860.0,0.9970643]
[1674064848533,1.16087197,20865.0,20863.0,0.002]
[1674064848771,0.966551,20865.0,20863.0,0.002]
[1674064849268,0.317916,20864.0,20860.0,0.88260943]
[1674064849504,0.19432097,20864.0,20860.0,0.779386]
[1674064849992,0.19432097,20864.0,20860.0,0.95110466]
[1674064850224,0.48069303,20864.0,20860.0,0.95310466]
[1674064850466,0.48069303,20864.0,20860.0,1.43049066]
[1674064850735,0.48069303,20864.0,20860.0,1.60432967]
[1674064850736,0.48969303,20864.0,20860.0,1.60432967]
[1674064850947,1.44829103,20864.0,20860.0,0.64355767]
[1674064851189,0.97798703,20864.0,20860.0,0.64555767]
[1674064851433,0.78366606,20864.0,20860.0,0.64555767]
[1674064851667,0.78366606,20864.0,20860.0,0.47383901]
[1674064851972,0.15,20863.0,20860.0,0.47383901]
[1674064852208,0.15,20863.0,20860.0,0.17383901]
[1674064852440,0.34642363,20862.0,20860.0,0.17383901]
[1674064852924,0.82577063,20862.0,20860.0,0.17383901]
[1674064853166,0.82577063,20862.0,20860.0,0.17183901]
[1674064853409,0.15,20860.0,20858.0,0.11465141]
[1674064853649,2.239158,20859.0,20858.0,5.141e-05]
[1674064853893,2.6702162,20859.0,20857.0,0.78562015]
[1674064854137,0.333732,20858.0,20857.0,0.78562015]
[1674064854384,1.292596,20858.0,20857.0,0.78562015]
[1674064854618,1.369996,20858.0,20857.0,0.78562015]
[1674064854880,1.036264,20858.0,20857.0,0.78562015]
[1674064855113,1.366775,20858.0,20857.0,0.78562015]
[1674064855390,1.58692591,20858.0,20857.0,0.78562015]
[1674064855617,0.973343,20858.0,20857.0,0.78562015]
[1674064856109,0.407911,20858.0,20857.0,0.78562015]
[1674064856361,0.419511,20858.0,20857.0,0.3846132]
[1674064856849,0.330511,20858.0,20857.0,0.3846132]
[1674064857355,0.0779,20860.0,20857.0,0.3846132]
[1674064857598,0.52231584,20861.0,20858.0,0.3]
[1674064857599,0.15,20861.0,20858.0,0.3]
[1674064857840,0.479354,20862.0,20858.0,0.40322343]
[1674064858379,0.479354,20862.0,20858.0,0.10322343]
[1674064858629,0.089,20861.0,20858.0,0.40322343]
[1674064858867,0.479354,20862.0,20859.0,0.15]
[1674064859112,0.29112832,20860.0,20857.0,0.48783663]
[1674064859358,1.04214729,20860.0,20857.0,0.3846132]
[1674064859590,1.04214729,20860.0,20857.0,0.229296]
[1674064859825,0.58522655,20860.0,20857.0,0.229296]
[1674064860065,0.1663,20860.0,20857.0,0.229296]
[1674064860314,0.089,20860.0,20857.0,0.33251943]
[1674064860561,0.089,20860.0,20858.0,0.3]
[1674064860794,0.089,20860.0,20855.0,1.23690699]
[1674064860795,0.089,20860.0,20855.0,1.33650655]
[1674064861036,0.089,20860.0,20856.0,0.855351]
[1674064861037,0.28332097,20860.0,20856.0,0.855351]
[1674064861283,0.089,20860.0,20857.0,0.80392169]
[1674064861522,0.37451354,20863.0,20859.0,0.0781]
[1674064861777,0.29538526,20862.0,20859.0,0.10322343]
[1674064862022,0.31697854,20860.0,20859.0,0.15]
[1674064862272,0.38997854,20860.0,20859.0,0.15]
[1674064862495,0.31697854,20860.0,20859.0,0.15]
[1674064862734,0.31697854,20860.0,20859.0,0.018]
[1674064862982,0.31697854,20860.0,20856.0,1.06261913]
[1674064863232,0.51729951,20860.0,20857.0,0.3]
[1674064863484,0.64915296,20862.0,20857.0,0.3]
[1674064863753,1.32281993,20862.0,20857.0,0.40322343]
[1674064863987,0.92157393,20862.0,20857.0,0.40322343]
[1674064864237,1.40091693,20862.0,20857.0,0.40322343]
[1674064864799,1.40091693,20862.0,20859.0,0.018]
[1674064864800,0.006,20860.0,20859.0,0.018]
[1674064865053,1.20659596,20862.0,20859.0,0.0085]
[1674064865318,0.76098242,20862.0,20859.0,0.10322343]
[1674064865542,0.76098242,20862.0,20860.0,0.0085]
[1674064865794,0.75398242,20862.0,20860.0,0.0085]
[1674064866280,0.75398242,20862.0,20859.0,0.003]
[1674064866542,0.330197,20861.0,20857.0,0.3085]
[1674064866777,0.82369897,20861.0,20860.0,0.002]
[1674064867026,0.958741,20861.0,20857.0,0.3085]
[1674064867261,1.15306197,20861.0,20857.0,0.0085]
[1674064867514,1.15306197,20861.0,20856.0,0.3085]
[1674064867761,1.52757551,20861.0,20856.0,0.3085]
[1674064868003,0.15,20860.0,20859.0,0.002]
[1674064868244,0.958772,20860.0,20856.0,0.11172343]
[1674064868483,0.31512161,20859.0,20856.0,0.0265]
[1674064868723,0.31512161,20859.0,20856.0,0.3085]
[1674064868952,1.27395161,20859.0,20855.0,0.28635645]
[1674064869218,1.72624909,20859.0,20855.0,0.28635645]
[1674064869451,1.41112748,20859.0,20855.0,0.28635645]
[1674064869717,0.0779,20857.0,20855.0,0.11454379]
[1674064869965,0.793193,20856.0,20855.0,0.11454379]
[1674064870447,0.479478,20856.0,20855.0,0.11454379]
[1674064870691,0.958956,20856.0,20855.0,0.11454379]
[1674064870995,0.958956,20856.0,20855.0,0.001]
[1674064871210,0.958956,20856.0,20854.0,1.17018496]
[1674064871211,0.80563,20856.0,20854.0,1.17018496]
[1674064871467,0.089,20856.0,20855.0,0.3]
[1674064871709,0.089,20856.0,20855.0,0.788001]
[1674064871965,0.089,20856.0,20855.0,1.108402]
[1674064872265,0.089,20856.0,20855.0,0.628901]
[1674064872505,0.089,20856.0,20855.0,0.3085]
[1674064873240,0.089,20856.0,20855.0,0.0085]
[1674064873494,0.089,20856.0,20855.0,0.3085]
[1674064873988,0.089,20856.0,20855.0,0.0085]
[1674064874234,0.089,20856.0,20855.0,0.3085]
[1674064874472,0.089,20856.0,20855.0,0.0085]
[1674064875187,0.089,20856.0,20855.0,0.3085]
[1674064875914,0.089,20856.0,20855.0,1.11104]
[1674064876156,0.089,20856.0,20855.0,0.631539]
[1674064876383,0.089,20856.0,20855.0,0.3085]
[1674064876636,0.089,20856.0,20855.0,0.0085]
[1674064876883,0.289,20856.0,20855.0,0.0085]
[1674064877137,0.768478,20856.0,20855.0,0.0085]
[1674064877427,0.600461,20856.0,20855.0,0.0085]
[1674064877919,1.559417,20856.0,20855.0,0.0085]
[1674064878145,1.559417,20856.0,20854.0,0.13927509]
[1674064878377,0.535862,20855.0,20854.0,0.13927509]
[1674064878622,1.494864,20855.0,20854.0,0.13927509]
[1674064879351,1.77549844,20855.0,20854.0,0.13927509]
[1674064879608,1.86149844,20855.0,20854.0,0.13927509]
[1674064880324,0.901363,20855.0,20854.0,0.13927509]
[1674064880560,0.565501,20855.0,20854.0,0.13927509]
[1674064881065,1.284328,20855.0,20854.0,0.13927509]
[1674064881308,1.284328,20855.0,20854.0,0.08927509]
[1674064881309,1.373328,20855.0,20854.0,0.08927509]
[1674064881556,1.523328,20855.0,20854.0,0.08927509]
[1674064881788,1.373328,20855.0,20854.0,0.08927509]
[1674064882755,2.373328,20855.0,20854.0,0.08927509]
[1674064882993,2.77266359,20855.0,20854.0,0.08927509]
[1674064885977,2.85076359,20855.0,20854.0,0.08927509]
[1674064886238,3.26141795,20855.0,20854.0,0.08927509]
[1674064886464,2.94018236,20855.0,20854.0,0.08927509]
[1674064886715,2.70055863,20855.0,20854.0,0.08927509]
[1674064887683,2.79055863,20855.0,20854.0,0.08927509]
[1674064887927,2.70055863,20855.0,20854.0,0.08927509]
[1674064888210,2.79155863,20855.0,20854.0,0.08927509]
[1674064888929,2.70055863,20855.0,20854.0,0.08927509]
[1674064889176,2.79155863,20855.0,20854.0,0.08927509]
[1674064889988,3.18570457,20855.0,20854.0,0.08927509]
[1674064890440,2.84757394,20855.0,20854.0,0.08927509]
[1674064890723,3.2561227,20855.0,20854.0,0.08927509]
[1674064890970,2.86197676,20855.0,20854.0,0.08927509]
[1674064892231,3.18347327,20855.0,20854.0,0.08927509]
[1674064892505,3.02194897,20855.0,20853.0,1.182e-05]
[1674064892760,6e-05,20852.0,20851.0,0.01515488]
[1674064893015,2.59570897,20852.0,20851.0,0.01515488]
[1674064893254,2.855288,20852.0,20851.0,0.01515488]
[1674064893708,3.155288,20852.0,20851.0,0.01515488]
[1674064893949,2.855288,20852.0,20851.0,0.01515488]
[1674064894465,2.649988,20852.0,20851.0,0.01515488]
[1674064894719,1.364618,20852.0,20851.0,0.01515488]
[1674064894970,0.401431,20852.0,20851.0,0.30926898]
[1674064895225,0.97995366,20852.0,20851.0,0.01515488]
[1674064895466,2.17592324,20852.0,20850.0,0.13007765]
[1674064895725,0.411025,20851.0,20850.0,0.13007765]
[1674064895993,0.890618,20851.0,20850.0,0.13007765]
[1674064896476,0.332925,20851.0,20850.0,0.3653463]
[1674064896729,0.47963,20852.0,20850.0,0.3653463]
[1674064896974,0.332014,20851.0,20850.0,0.3653463]
[1674064897214,0.889707,20851.0,20850.0,0.3653463]
[1674064897705,0.889707,20851.0,20850.0,0.3603463]
[1674064898196,0.410114,20851.0,20850.0,0.3603463]
[1674064898445,0.0781,20851.0,20850.0,0.3603463]
[1674064898686,0.0781,20851.0,20850.0,0.12607765]
[1674064898933,0.878449,20851.0,20850.0,0.12507765]
[1674064899183,0.960449,20851.0,20850.0,0.12607765]
[1674064899403,1.20627007,20851.0,20850.0,0.12507765]
[1674064899651,1.28927007,20851.0,20850.0,0.12607765]
[1674064899889,0.878509,20851.0,20850.0,0.12507765]
[1674064900142,0.961509,20851.0,20850.0,0.27467038]
[1674064900393,0.878509,20851.0,20850.0,0.27367038]
[1674064900633,1.20096501,20851.0,20850.0,0.12507765]
[1674064900889,1.46211531,20851.0,20850.0,0.12507765]
[1674064901134,1.94170831,20851.0,20850.0,0.12507765]
[1674064901399,1.94170831,20851.0,20850.0,0.12607765]
[1674064901400,1.7803523,20851.0,20850.0,0.12607765]
[1674064901635,2.09979887,20851.0,20850.0,0.12507765]
[1674064901881,2.18279887,20851.0,20850.0,0.12607765]
[1674064902365,1.92164857,20851.0,20850.0,0.12607765]
[1674064902674,1.75564857,20851.0,20850.0,0.12507765]
[1674064903071,1.75564857,20851.0,20850.0,0.12607765]
[1674064903316,0.15,20850.0,20849.0,0.47856364]
[1674064903598,0.15,20850.0,20848.0,0.64509124]
[1674064903599,2.211785,20850.0,20848.0,0.64509124]
[1674064903899,0.768412,20849.0,20848.0,0.64509124]
[1674064904111,0.951651,20849.0,20848.0,0.64509124]
[1674064904372,1.101651,20849.0,20848.0,0.64509124]
[1674064904607,0.951651,20849.0,20848.0,0.64509124]
[1674064905364,1.035651,20849.0,20848.0,0.64609124]
[1674064906112,1.335651,20849.0,20848.0,0.64609124]
[1674064906359,1.035651,20849.0,20848.0,0.64609124]
[1674064907581,1.035711,20849.0,20848.0,0.64609124]
[1674064907827,0.957611,20849.0,20848.0,0.64609124]
[1674064908336,0.879511,20849.0,20848.0,0.64609124]
[1674064908584,1.35915,20849.0,20848.0,0.64609124]
[1674064909679,1.35915,20849.0,20848.0,0.98791897]
[1674064909927,6e-05,20852.0,20848.0,1.22897667]
[1674064910211,0.11271325,20853.0,20851.0,0.6]
[1674064910460,0.16908647,20857.0,20852.0,1.97700012]
[1674064910720,0.97984032,20862.0,20855.0,1.6]
[1674064910996,0.07553473,20858.0,20857.0,0.0781]
[1674064911246,0.08253609,20858.0,20857.0,0.0085]
[1674064911559,0.06536801,20858.0,20854.0,0.37573986]
[1674064911811,0.06536801,20858.0,20854.0,0.36211156]
[1674064912046,0.06536801,20858.0,20857.0,0.008]
[1674064912293,0.06536801,20858.0,20857.0,0.0085]
[1674064912550,0.0684739,20861.0,20857.0,0.09416]
[1674064912832,0.38047419,20859.0,20857.0,0.19738343]
[1674064913060,0.38047419,20859.0,20858.0,0.16386]
[1674064913368,0.38047419,20859.0,20858.0,0.691262]
[1674064914129,0.90285983,20862.0,20858.0,1.4281489]
[1674064914403,0.90285983,20862.0,20859.0,0.254799]
[1674064914654,0.90285983,20862.0,20859.0,1.2786568]
[1674064914655,0.56465106,20862.0,20859.0,1.2786568]
[1674064914903,0.56465106,20862.0,20859.0,1.75085849]
[1674064915895,0.56465106,20862.0,20859.0,2.53516749]
[1674064916160,0.56465106,20862.0,20859.0,2.86086749]
[1674064916398,0.56465106,20862.0,20859.0,2.62341869]
[1674064916679,0.04499577,20860.0,20859.0,3.04085956]
[1674064916906,0.56465106,20862.0,20861.0,0.5008]
[1674064917164,0.31728472,20862.0,20861.0,4.40907712]
[1674064917439,0.56147079,20864.0,20861.0,5.15951456]
[1674064917697,0.02787079,20864.0,20863.0,0.97800169]
[1674064917984,0.00704935,20871.0,20865.0,0.5008]
[1674064918275,0.00704935,20871.0,20866.0,2.46981169]
[1674064918530,0.00704935,20871.0,20866.0,2.254241]
[1674064918804,0.00704935,20871.0,20866.0,3.21069069]
[1674064919071,0.00704935,20871.0,20866.0,2.89129769]
[1674064919347,0.00704935,20871.0,20868.0,0.1562]
[1674064919605,0.00704935,20871.0,20868.0,0.470343]
[1674064919863,0.00704935,20871.0,20868.0,0.94754469]
[1674064920632,0.00704935,20871.0,20868.0,1.94754469]
[1674064920892,0.00704935,20871.0,20868.0,2.24404469]
[1674064921152,0.00704935,20871.0,20868.0,2.34726812]
[1674064921420,0.00704935,20871.0,20869.0,1.766511]
[1674064921667,0.00704935,20871.0,20869.0,2.69611269]
[1674064921977,0.00704935,20871.0,20869.0,2.99651269]
[1674064922177,0.00704935,20871.0,20870.0,0.79134169]
[1674064922429,0.00704935,20871.0,20870.0,1.96322769]
[1674064923454,0.00704935,20871.0,20870.0,2.46402769]
[1674064923983,0.67345397,20871.0,20870.0,0.5008]
[1674064924238,0.328712,20871.0,20870.0,0.092]
[1674064924486,0.328712,20871.0,20870.0,0.184]
[1674064924487,0.52303297,20871.0,20870.0,0.184]
[1674064924739,0.328712,20871.0,20867.0,0.08053991]
[1674064925030,1.05077247,20871.0,20867.0,0.08053991]
[1674064925271,0.19432097,20870.0,20865.0,0.06663065]
[1674064925530,0.19432097,20869.0,20865.0,0.06663065]
[1674064925818,0.19432097,20869.0,20867.0,0.14845409]
[1674064926066,0.8564635,20871.0,20867.0,0.14845409]
[1674064926316,0.479159,20870.0,20867.0,0.14845409]
[1674064926611,0.330304,20869.0,20867.0,0.07035409]
[1674064926872,0.330304,20869.0,20864.0,0.14692573]
[1674064926873,0.347684,20868.0,20864.0,0.14692573]
[1674064927179,0.315364,20867.0,20864.0,0.14692573]
[1674064927460,0.3773095,20869.0,20866.0,0.0776]
[1674064927715,0.8564505,20871.0,20867.0,0.491632]
[1674064927963,1.36984866,20872.0,20869.0,0.0781]
[1674064928208,1.36984866,20872.0,20870.0,0.42470143]
[1674064928502,1.36984866,20872.0,20870.0,0.10322343]
[1674064928783,0.27184065,20871.0,20867.0,0.3781]
[1674064929035,0.94529562,20871.0,20867.0,0.0781]
[1674064929537,0.94529462,20871.0,20867.0,0.1701]
[1674064929785,0.75097565,20871.0,20867.0,0.15424643]
[1674064930035,1.36984866,20872.0,20868.0,0.15]
[1674064930320,1.36984866,20872.0,20868.0,0.3]
[1674064930558,1.36984866,20872.0,20869.0,0.321491]
[1674064930814,1.36984866,20872.0,20870.0,0.45]
[1674064931019,1.36984866,20872.0,20871.0,1.272198]
[1674064931020,1.37084866,20872.0,20871.0,1.272198]
[1674064931307,1.37084866,20872.0,20871.0,3.05152312]
[1674064931566,1.37084866,20872.0,20871.0,2.94829969]
[1674064931826,1.37084866,20872.0,20871.0,2.94939969]
[1674064932087,1.36984866,20872.0,20871.0,3.05262312]
[1674064932347,1.36984866,20872.0,20871.0,3.61691713]
[1674064932871,1.36984866,20872.0,20871.0,3.70891713]
[1674064933109,1.36984866,20872.0,20871.0,3.70163242]
[1674064933360,1.36984866,20872.0,20871.0,3.15103242]
[1674064933617,1.36984866,20872.0,20871.0,3.12661498]
[1674064933879,0.40440734,20872.0,20871.0,3.34512312]
[1674064934134,0.61801393,20873.0,20872.0,0.07004247]
[1674064934391,0.61801393,20873.0,20872.0,2.64779316]
[1674064935162,0.61801393,20873.0,20872.0,1.34779316]
[1674064935403,0.61801393,20873.0,20872.0,0.800549]
[1674064935669,0.61901393,20873.0,20872.0,0.403439]
[1674064935922,0.61901393,20873.0,20872.0,0.531139]
[1674064936176,0.61218723,20873.0,20872.0,1.010249]
[1674064936678,0.61218723,20873.0,20872.0,1.789359]
[1674064936950,0.61218723,20873.0,20872.0,2.916659]
[1674064937198,0.61218723,20873.0,20872.0,3.38786069]
[1674064937694,0.61218723,20873.0,20872.0,4.03196069]
[1674064937908,0.61218723,20873.0,20872.0,4.13694315]
[1674064938191,0.61118723,20873.0,20872.0,4.03652571]
[1674064938459,0.61218723,20873.0,20872.0,4.11252571]
[1674064938979,0.61318723,20873.0,20872.0,4.17852571]
[1674064939750,0.61118723,20873.0,20872.0,3.94596069]
[1674064940021,0.61218723,20873.0,20872.0,4.08362976]
[1674064940553,0.61218723,20873.0,20872.0,4.52276069]
[1674064940797,1.39618495,20874.0,20872.0,5.45206069]
[1674064941054,1.39618495,20874.0,20873.0,3.57180069]
[1674064941382,1.57568185,20875.0,20873.0,6.03398117]
[1674064941556,1.57568185,20875.0,20874.0,2.16896544]
[1674064941801,1.05572385,20875.0,20874.0,7.22934819]
[1674064942063,0.16207885,20875.0,20874.0,6.89042997]
[1674064942335,4.52878093,20876.0,20874.0,5.28217517]
[1674064942576,4.52878093,20876.0,20875.0,4.49008397]
[1674064942835,4.52184425,20876.0,20875.0,4.96912497]
[1674064943081,3.75911293,20876.0,20875.0,6.11208117]
[1674064943334,3.12441068,20876.0,20875.0,5.63564241]
[1674064943602,0.66692379,20877.0,20875.0,7.65829518]
[1674064943855,2.8e-07,20878.0,20877.0,1.09846]
[1674064944118,1.8637856,20880.0,20879.0,0.7871]
[1674064944371,1.8637856,20880.0,20879.0,3.56454812]
[1674064944628,1.44773828,20880.0,20879.0,4.50602022]
[1674064944872,0.498012,20880.0,20879.0,5.68843766]
[1674064945134,0.016148,20880.0,20879.0,7.36182855]
[1674064945387,0.016148,20880.0,20879.0,6.71922855]
[1674064945665,0.00836955,20884.0,20879.0,4.01709854]
[1674064945917,0.00836955,20884.0,20881.0,0.12047039]
[1674064946183,0.00836955,20884.0,20881.0,3.09485309]
[1674064946463,5.5443844,20882.0,20881.0,3.18169541]
[1674064946687,5.52657506,20882.0,20881.0,2.80020061]
[1674064946940,5.52657506,20882.0,20881.0,2.97365061]
[1674064947208,5.49386784,20882.0,20881.0,3.35514541]
[1674064947474,5.49386784,20882.0,20881.0,2.97365061]
[1674064947720,5.49486784,20882.0,20881.0,4.04481061]
[1674064947984,5.49386784,20882.0,20881.0,4.55285436]
[1674064948237,5.49486784,20882.0,20881.0,4.14975436]
[1674064948490,5.49386784,20882.0,20881.0,4.06575436]
[1674064948746,5.49486784,20882.0,20881.0,4.65055436]
[1674064949003,5.49486784,20882.0,20881.0,4.56655436]
[1674064949302,5.49586784,20882.0,20881.0,4.65055436]
[1674064950085,5.49386784,20882.0,20881.0,5.41243136]
[1674064950359,5.49386784,20882.0,20881.0,5.73326262]
[1674064950360,5.49486784,20882.0,20881.0,5.73326262]
[1674064950583,5.49386784,20882.0,20881.0,5.64926262]
[1674064950849,5.48987426,20882.0,20881.0,5.73526262]
[1674064951099,5.48414146,20882.0,20881.0,4.98145436]
[1674064951352,5.48275418,20882.0,20881.0,5.73526262]
[1674064951611,5.4575469,20882.0,20881.0,4.98145436]
[1674064951876,5.36952593,20882.0,20881.0,4.76745436]
[1674064952126,5.36824985,20882.0,20881.0,4.26685436]
[1674064952626,5.32437124,20882.0,20881.0,4.26685436]
[1674064953135,5.32537124,20882.0,20881.0,4.35285436]
[1674064953394,5.32337124,20882.0,20881.0,5.34896262]
[1674064953636,5.32437124,20882.0,20881.0,4.76715436]
[1674064953889,4.85816404,20882.0,20881.0,5.17031779]
[1674064954164,1.87667151,20882.0,20881.0,5.94111779]
[1674064954419,0.00836955,20884.0,20881.0,6.20726422]
[1674064954687,0.00836955,20884.0,20882.0,5.62139097]
[1674064954932,0.00836955,20884.0,20882.0,7.01487992]
[1674064955182,0.00740577,20884.0,20882.0,6.37217992]
[1674064955435,0.00740577,20884.0,20882.0,6.37211086]
[1674064955687,0.00740577,20884.0,20882.0,5.64865191]
[1674064956709,0.00740577,20884.0,20882.0,7.10811086]
[1674064956958,0.71627083,20885.0,20883.0,3.83314197]
[1674064957228,0.71627083,20885.0,20884.0,4.66228222]
[1674064957478,0.71627083,20885.0,20884.0,5.16555897]
[1674064958242,0.6953247,20885.0,20884.0,5.16565741]
[1674064959008,0.00098856,20887.0,20886.0,0.5008]
[1674064959269,0.84325945,20897.0,20896.0,0.65181978]
[1674064959539,0.83403318,20897.0,20896.0,4.5181799]
[1674064959796,0.74374323,20897.0,20896.0,5.37516918]
[1674064960052,0.74374323,20897.0,20896.0,4.99481876]
[1674064960314,0.74374323,20897.0,20896.0,3.93448783]
[1674064960594,0.74374323,20897.0,20896.0,3.0248372]
[1674064960823,0.64374323,20897.0,20896.0,3.0248372]
[1674064961068,0.64374323,20897.0,20896.0,3.1168372]
[1674064961318,0.64374323,20897.0,20896.0,2.32479345]
[1674064961588,0.64374323,20897.0,20895.0,0.67043063]
[1674064961847,0.64374323,20897.0,20896.0,0.47856]
[1674064962114,0.65174323,20897.0,20896.0,0.48656]
[1674064962386,0.64374323,20897.0,20896.0,0.47856]
[1674064962629,0.4843408,20897.0,20896.0,1.59802]
[1674064962913,0.4763408,20897.0,20896.0,1.59002]
[1674064963197,0.4843408,20897.0,20896.0,1.59808]
[1674064963428,0.4763408,20897.0,20896.0,1.89008]
[1674064963688,0.4843408,20897.0,20896.0,1.89808]
[1674064963941,0.4843408,20897.0,20896.0,0.64096]
[1674064964217,0.4843408,20897.0,20896.0,1.25417258]
[1674064964517,0.4843408,20897.0,20896.0,1.11952]
[1674064964767,0.4843408,20897.0,20896.0,2.21091993]
[1674064965053,0.4763408,20897.0,20896.0,1.24579993]
[1674064965280,0.4843408,20897.0,20896.0,1.89808]
[1674064965565,0.4763408,20897.0,20896.0,2.50292514]
[1674064965841,0.4843408,20897.0,20896.0,1.55380514]
[1674064966084,0.4763408,20897.0,20896.0,2.02436514]
[1674064966342,0.4843408,20897.0,20896.0,1.41952]
[1674064966840,0.4843408,20897.0,20896.0,2.37528169]
[1674064967097,0.4843408,20897.0,20896.0,3.16732544]
[1674064967662,0.4843408,20897.0,20896.0,3.78017058]
[1674064967907,0.4843408,20897.0,20896.0,3.16732544]
[1674064968164,0.4843408,20897.0,20896.0,3.66812544]
[1674064968665,0.4843408,20897.0,20896.0,3.99314838]
[1674064968922,0.4843408,20897.0,20896.0,3.7530102]
[1674064969693,0.4763408,20897.0,20896.0,2.48070851]
[1674064969939,0.4773408,20897.0,20896.0,2.56470851]